bitfinex-derivatives/quotes_SOLF0:USTF0_20250625
["timestamp","ask_amount","ask_price","bid_price","bid_amount"]
[1750869426042,6.9792,143.21,143.18,6.9803]
[1750869426234,2.3646,143.22,143.16,6.7089918]
[1750869426435,6.9794,143.21,143.16,6.7089918]
[1750869427236,9.0735918,143.22,143.14,6.7089918]
[1750869427431,11.3987918,143.22,143.14,6.7089918]
[1750869427840,16.7544058,143.22,143.15,6.9818]
[1750869428847,6.9806,143.18,143.15,6.9818]
[1750869429047,16.7544058,143.22,143.16,6.9815]
[1750869429248,16.7544058,143.22,143.14,6.7089918]
[1750869429451,16.7544058,143.22,143.16,6.9814]
[1750869429849,6.9804,143.19,143.16,6.9814]
[1750869430048,4.6898,143.22,143.16,6.7089918]
[1750869430250,2.3646,143.22,143.16,6.7089918]
[1750869430549,6.9788,143.22,143.16,6.7089918]
[1750869430750,6.9788,143.22,143.19,6.9798]
[1750869430941,38.56,143.23,143.16,6.7089918]
[1750869431245,45.2689918,143.23,143.15,6.9817]
[1750869431437,4.7404,143.22,143.14,6.7089918]
[1750869431836,6.9803,143.19,143.16,6.9812]
[1750869432540,6.9808,143.18,143.15,6.9818]
[1750869432741,10.08768722,143.22,143.14,6.7089918]
[1750869433149,6.9803,143.19,143.16,6.9813]
[1750869433343,4.7404,143.22,143.14,6.7089918]
[1750869433743,6.9806,143.18,143.15,6.9818]
[1750869434442,6.9812,143.17,143.15,6.9818]
[1750869436554,6.9808,143.18,143.15,6.9818]
[1750869436851,38.56,143.19,143.13,2.4334]
[1750869437045,38.56,143.19,143.13,9.1423918]
[1750869437356,6.9808,143.18,143.13,9.1423918]
[1750869437740,38.56,143.19,143.13,9.1423918]
[1750869438144,38.56,143.19,143.15,6.9817]
[1750869438355,38.56,143.19,143.13,9.1423918]
[1750869438750,38.56,143.19,143.13,2.4334]
[1750869439958,45.5403,143.19,143.16,6.9813]
[1750869440259,2.4108,143.22,143.16,6.7089918]
[1750869440452,6.9783,143.23,143.18,6.7089918]
[1750869440758,38.56,143.24,143.18,6.7089918]
[1750869440949,6.9789,143.22,143.19,6.9797]
[1750869441257,38.56,143.24,143.16,45.2689918]
[1750869442452,6.9785,143.23,143.2,6.9793]
[1750869442658,43.93671393,143.24,143.2,6.9793]
[1750869442850,38.56,143.24,143.2,6.9793]
[1750869443051,6.9784,143.23,143.2,6.9793]
[1750869443251,43.92335907,143.24,143.19,6.9799]
[1750869443555,38.56,143.24,143.19,6.9799]
[1750869443747,38.56,143.24,143.2,6.9795]
[1750869444345,38.56,143.24,143.19,6.9798]
[1750869444749,6.9785,143.23,143.16,45.2689918]
[1750869445160,38.56,143.24,143.18,6.7089918]
[1750869445553,38.56,143.24,143.21,6.979]
[1750869445755,45.5379,143.24,143.21,6.979]
[1750869446956,38.56,143.24,143.22,6.9785]
[1750869447148,38.56,143.24,143.18,6.7089918]
[1750869447557,38.56,143.24,143.21,6.9789]
[1750869448463,45.5379,143.24,143.21,6.9789]
[1750869450454,45.5379,143.24,143.22,6.9785]
[1750869450655,38.56,143.24,143.2,4.4641692]
[1750869450953,38.56,143.27,143.2,4.4641692]
[1750869451157,6.9774,143.25,143.2,43.0241692]
[1750869451353,5.45967577,143.24,143.2,43.0241692]
[1750869451554,6.9774,143.25,143.23,6.9781]
[1750869451756,5.45978645,143.24,143.2,43.0241692]
[1750869451957,4.4641692,143.25,143.2,6.9792]
[1750869452161,5.45925125,143.24,143.2,6.9792]
[1750869452359,6.9784,143.23,143.2,6.9792]
[1750869452561,4.4641692,143.25,143.19,6.9797]
[1750869452759,12.43351726,143.24,143.17,47.6357692]
[1750869452956,6.9779,143.24,143.17,47.6357692]
[1750869453156,4.76950779,143.26,143.19,4.4641692]
[1750869453365,5.45568091,143.25,143.19,4.4641692]
[1750869453554,5.45535638,143.24,143.2,6.9794]
[1750869453752,4.4641692,143.25,143.2,6.9794]
[1750869453960,6.9784,143.23,143.2,6.9794]
[1750869454161,5.46709252,143.22,143.2,6.9794]
[1750869454361,6.9784,143.23,143.21,6.9789]
[1750869454548,6.9779,143.24,143.21,6.9789]
[1750869454749,5.4688671,143.23,143.21,6.9789]
[1750869454957,5.4688671,143.22,143.21,6.9789]
[1750869455358,6.9779,143.24,143.21,6.9789]
[1750869455553,5.46970163,143.23,143.21,6.9789]
[1750869455765,6.9779,143.24,143.21,6.9789]
[1750869455958,5.46800482,143.23,143.19,4.4641692]
[1750869456158,6.9774,143.25,143.19,4.4641692]
[1750869456356,5.4680117,143.24,143.23,6.9781]
[1750869456557,5.46801173,143.24,143.23,6.9781]
[1750869457759,5.46801173,143.24,143.23,11.4422692]
[1750869457963,4.7916551,143.29,143.23,4.4641692]
[1750869458259,4.7916551,143.28,143.23,4.4641692]
[1750869458458,4.7916551,143.27,143.26,6.9764]
[1750869458662,38.06,143.3,143.25,4.4641692]
[1750869458960,38.06,143.3,143.28,6.9757]
[1750869459162,2.3995,143.31,143.27,4.4641692]
[1750869459350,213.90729518,143.32,143.27,4.4641692]
[1750869459551,4.78690645,143.31,143.27,4.4641692]
[1750869459758,38.06,143.33,143.29,4.4641692]
[1750869460367,38.06,143.33,143.26,9.16378358]
[1750869460758,6.9739,143.32,143.29,6.9752]
[1750869460960,38.06,143.33,143.26,9.16378358]
[1750869461258,6.9729,143.34,143.28,6.68688358]
[1750869461462,40.3476,143.36,143.28,6.68688358]
[1750869461666,4.80089216,143.35,143.3,6.68688358]
[1750869461866,40.3476,143.36,143.3,6.68688358]
[1750869461867,4.80089216,143.34,143.3,6.68688358]
[1750869462065,48.28904063,143.39,143.3,6.68688358]
[1750869462260,4.79136893,143.37,143.3,6.68688358]
[1750869462466,39.25425705,143.39,143.29,38.04]
[1750869462467,38.04,143.39,143.32,6.68688358]
[1750869462667,4.79244246,143.37,143.32,6.68688358]
[1750869462866,9.2453,143.38,143.35,6.9718]
[1750869463564,2.2743,143.38,143.32,6.68688358]
[1750869464064,6.68688358,143.43,143.33,38.04]
[1750869464271,6.68688358,143.41,143.33,38.04]
[1750869464468,4.79373455,143.4,143.33,38.04]
[1750869464665,6.68688358,143.41,143.33,38.04]
[1750869464968,6.68688358,143.41,143.34,6.9725]
[1750869464969,6.9713,143.37,143.34,6.9725]
[1750869465865,38.04,143.4,143.33,38.04]
[1750869466068,38.04,143.4,143.34,6.68688358]
[1750869466858,45.1921,143.43,143.36,6.68688358]
[1750869467767,45.1921,143.43,143.38,6.9708]
[1750869467975,45.1921,143.43,143.34,9.02668358]
[1750869468777,45.1921,143.43,143.36,6.68688358]
[1750869469071,6.9692,143.42,143.39,6.9703]
[1750869469571,52.1607,143.43,143.39,6.9703]
[1750869469963,45.0086,143.43,143.39,6.9703]
[1750869470165,7.4085,143.47,143.41,6.9691]
[1750869470371,17.32916841,143.47,143.38,6.68688358]
[1750869470578,17.32894461,143.47,143.38,6.68688358]
[1750869470778,6.9683,143.44,143.4,6.9698]
[1750869471078,6.9683,143.44,143.38,6.68688358]
[1750869471966,6.9683,143.44,143.41,6.9691]
[1750869472173,6.9676,143.45,143.38,6.68688358]
[1750869472376,7.4085,143.47,143.43,6.968]
[1750869472675,7.4085,143.47,143.4,6.68688358]
[1750869472972,6.9671,143.46,143.43,6.9681]
[1750869473561,44.70688358,143.51,143.41,38.02]
[1750869473763,13.72018358,143.49,143.41,38.02]
[1750869473978,51.74018358,143.49,143.41,38.02]
[1750869474275,40.5008,143.49,143.41,44.70688358]
[1750869475073,47.4665,143.49,143.45,6.9671]
[1750869475877,47.4665,143.49,143.46,6.9667]
[1750869476271,6.966,143.48,143.43,6.68688358]
[1750869476569,40.5008,143.49,143.43,6.68688358]
[1750869477273,2.4808,143.49,143.43,6.68688358]
[1750869477476,39.23315647,143.52,143.43,6.68688358]
[1750869477676,6.68688358,143.48,143.42,6.9685]
[1750869477979,2.3988,143.47,143.38,49.39028358]
[1750869478277,6.9677,143.45,143.41,6.9689]
[1750869478471,11.37128358,143.47,143.38,49.39028358]
[1750869478871,6.9679,143.44,143.38,49.39028358]
[1750869479067,11.37128358,143.47,143.38,42.7034]
[1750869479274,6.68688358,143.45,143.38,38.02]
[1750869479479,6.9692,143.42,143.39,6.9701]
[1750869479679,6.68688358,143.45,143.36,6.68688358]
[1750869479680,38.0,143.44,143.36,6.68688358]
[1750869479887,6.9696,143.41,143.38,6.9706]
[1750869480273,38.0,143.44,143.36,6.68688358]
[1750869480481,6.9702,143.4,143.37,6.971]
[1750869480682,6.68688358,143.43,143.37,6.971]
[1750869480869,6.9698,143.41,143.38,6.9708]
[1750869481074,6.68688358,143.43,143.38,6.9708]
[1750869481273,38.0,143.44,143.35,38.0]
[1750869481474,38.0,143.44,143.36,6.68688358]
[1750869481673,2.4869,143.46,143.38,6.68688358]
[1750869481879,2.4869,143.46,143.39,38.0]
[1750869482079,6.9676,143.45,143.42,6.9686]
[1750869482285,2.4869,143.46,143.42,6.9686]
[1750869482478,2.4869,143.46,143.39,38.0]
[1750869482674,39.15317762,143.5,143.42,6.68688358]
[1750869483275,37.94,143.5,143.42,6.68688358]
[1750869483676,6.9674,143.45,143.42,6.9686]
[1750869483876,6.68688358,143.44,143.36,6.68688358]
[1750869484080,13.60598358,143.44,143.35,37.94]
[1750869484281,6.9688,143.43,143.35,37.94]
[1750869484474,13.60598358,143.44,143.35,37.94]
[1750869484784,6.9191,143.44,143.36,6.68688358]
[1750869484985,6.9691,143.42,143.38,6.9706]
[1750869485176,6.68688358,143.43,143.35,37.94]
[1750869485370,6.68688358,143.41,143.36,6.9716]
[1750869485571,44.62688358,143.41,143.32,690.72]
[1750869485984,6.9706,143.39,143.36,6.9715]
[1750869486184,44.62688358,143.41,143.32,690.72]
[1750869486385,37.94,143.41,143.33,6.68688358]
[1750869486587,6.9702,143.4,143.33,6.68688358]
[1750869487487,6.9702,143.4,143.37,6.9712]
[1750869487785,44.9095,143.41,143.33,6.68688358]
[1750869487998,37.94,143.41,143.37,6.971]
[1750869488282,51.54598358,143.44,143.36,37.94]
[1750869488894,6.9691,143.42,143.36,37.94]
[1750869489490,6.9691,143.42,143.39,6.9701]
[1750869490293,6.9694,143.41,143.38,6.9706]
[1750869490692,44.8591,143.44,143.37,6.68688358]
[1750869491589,44.8591,143.44,143.36,37.94]
[1750869491784,44.8591,143.44,143.37,6.68688358]
[1750869492582,40.2856,143.44,143.37,6.68688358]
[1750869492787,37.94,143.47,143.39,6.68688358]
[1750869492978,44.9068,143.47,143.39,6.68688358]
[1750869493594,44.9068,143.47,143.44,6.9676]
[1750869493997,4.72957451,143.46,143.44,6.9676]
[1750869494198,37.94,143.47,143.45,6.9673]
[1750869494696,5.2603066,143.46,143.45,6.9673]
[1750869495396,10.06374833,143.46,143.37,37.92]
[1750869495695,44.62688358,143.47,143.34,44.60688358]
[1750869495696,6.68688358,143.43,143.34,44.60688358]
[1750869495901,6.9706,143.39,143.34,44.8926]
[1750869496198,6.68688358,143.41,143.34,37.92]
[1750869496395,6.68688358,143.39,143.31,37.92]
[1750869496599,6.9711,143.38,143.31,37.92]
[1750869497200,6.9705,143.39,143.32,6.68688358]
[1750869497593,6.9708,143.38,143.34,6.9725]
[1750869497898,5.27929108,143.4,143.32,6.68688358]
[1750869498103,6.68688358,143.41,143.32,6.68688358]
[1750869498398,10.09502834,143.4,143.32,6.68688358]
[1750869498700,6.9716,143.37,143.33,6.973]
[1750869498898,10.0943519,143.4,143.32,6.68688358]
[1750869499100,6.68688358,143.41,143.32,6.68688358]
[1750869499394,6.9717,143.37,143.33,6.973]
[1750869500001,6.9717,143.37,143.29,140.2]
[1750869500002,6.68688358,143.39,143.28,7.2311]
[1750869500208,6.68688358,143.37,143.3,37.94]
[1750869500598,6.68688358,143.37,143.31,6.9739]
[1750869500797,5.26950941,143.36,143.31,6.9739]
[1750869500999,6.972,143.36,143.3,44.62688358]
[1750869501201,6.972,143.36,143.33,6.9729]
[1750869501617,40.3439,143.38,143.3,44.62688358]
[1750869501912,37.94,143.38,143.32,6.68688358]
[1750869502215,44.9112,143.38,143.35,6.9722]
[1750869502409,37.94,143.38,143.32,6.68688358]
[1750869503013,2.346,143.39,143.32,6.68688358]
[1750869503405,9.3166,143.39,143.35,6.9719]
[1750869503808,9.3166,143.39,143.32,6.68688358]
[1750869504219,9.3166,143.39,143.36,6.9715]
[1750869504623,2.346,143.39,143.34,6.9724]
[1750869504814,5.27839004,143.38,143.3,44.62688358]
[1750869505013,9.03288358,143.39,143.3,44.62688358]
[1750869505213,6.9715,143.37,143.3,44.62688358]
[1750869506012,6.9715,143.37,143.34,6.9726]
[1750869506214,6.9715,143.37,143.3,44.62688358]
[1750869506407,6.9718,143.36,143.3,44.62688358]
[1750869507218,6.9724,143.35,143.3,44.62688358]
[1750869507421,9.03288358,143.39,143.3,37.94]
[1750869507625,10.09021683,143.38,143.3,37.94]
[1750869507827,6.9721,143.36,143.32,6.9737]
[1750869508322,9.03288358,143.39,143.32,6.9737]
[1750869508512,6.9726,143.35,143.32,6.9737]
[1750869509317,6.9726,143.35,143.33,6.9732]
[1750869509518,6.9726,143.35,143.3,37.94]
[1750869510519,6.9728,143.34,143.3,37.94]
[1750869510923,6.9728,143.34,143.31,6.974]
[1750869511331,6.68688358,143.34,143.26,146.45960325]
[1750869511526,6.68688358,143.34,143.29,6.9749]
[1750869511725,42.639,143.37,143.27,6.68688358]
[1750869511926,10.07039295,143.36,143.32,6.9734]
[1750869512132,49.32588358,143.37,143.29,6.68688358]
[1750869512431,4.80039871,143.36,143.29,6.68688358]
[1750869512621,42.639,143.37,143.33,6.9729]
[1750869512940,6.972,143.36,143.33,6.9729]
[1750869513231,42.639,143.37,143.32,6.9735]
[1750869513633,6.9721,143.36,143.29,6.68688358]
[1750869513834,6.9721,143.36,143.33,6.973]
[1750869514334,6.9721,143.36,143.29,6.68688358]
[1750869514526,6.9721,143.36,143.29,9.16188358]
[1750869515436,6.9721,143.36,143.33,6.973]
[1750869517027,2.346,143.39,143.3,37.74]
[1750869517228,40.086,143.39,143.33,6.68688358]
[1750869517734,37.74,143.42,143.38,6.9708]
[1750869517935,37.74,143.42,143.34,37.74]
[1750869518233,6.9706,143.39,143.36,6.9715]
[1750869519136,6.971,143.38,143.35,6.9721]
[1750869519432,6.971,143.38,143.31,44.42688358]
[1750869520737,37.74,143.42,143.35,6.68688358]
[1750869520941,2.2692,143.43,143.37,6.68688358]
[1750869521143,37.74,143.45,143.41,6.9694]
[1750869521344,11.802,143.44,143.41,6.9694]
[1750869521842,6.9684,143.43,143.4,6.9696]
[1750869522043,4.8338,143.44,143.37,6.68688358]
[1750869522242,10.06429307,143.44,143.37,6.68688358]
[1750869522443,6.9694,143.41,143.38,6.9705]
[1750869523434,6.9694,143.41,143.39,6.9703]
[1750869524744,6.9694,143.41,143.38,6.9706]
[1750869525951,6.9694,143.41,143.39,6.9702]
[1750869526948,14.26687665,143.43,143.39,6.9702]
[1750869526949,6.9691,143.42,143.39,6.9702]
[1750869527146,2.3495,143.43,143.39,6.9702]
[1750869527346,7.5815583,143.43,143.39,6.9702]
[1750869527648,6.969,143.42,143.39,6.9702]
[1750869528249,6.9694,143.41,143.39,6.9702]
[1750869528550,7.15047763,143.43,143.35,44.42688358]
[1750869528741,6.9696,143.41,143.35,44.42688358]
[1750869528941,2.3495,143.43,143.35,44.42688358]
[1750869529141,2.3495,143.43,143.39,6.97]
[1750869529351,6.9693,143.42,143.39,6.97]
[1750869530249,6.9694,143.41,143.39,6.97]
[1750869531049,6.9691,143.42,143.39,6.97]
[1750869531351,2.3495,143.43,143.39,6.97]
[1750869531542,6.9696,143.41,143.39,6.97]
[1750869532349,6.9699,143.4,143.38,6.9706]
[1750869532752,2.3495,143.43,143.38,6.9706]
[1750869533355,13.86157108,143.43,143.37,6.971]
[1750869533651,6.9711,143.38,143.35,37.74]
[1750869533851,44.40688358,143.41,143.32,42.4843]
[1750869534041,49.66345932,143.41,143.32,42.4843]
[1750869534247,6.971,143.38,143.32,42.4843]
[1750869534949,6.971,143.38,143.36,6.9715]
[1750869535148,44.40688358,143.41,143.36,6.9715]
[1750869535652,49.60328649,143.41,143.36,6.9715]
[1750869535853,6.9712,143.38,143.36,6.9715]
[1750869536052,44.40688358,143.41,143.35,6.972]
[1750869536353,6.9716,143.37,143.35,6.972]
[1750869536545,5.19587209,143.4,143.32,37.72]
[1750869536546,4.76092836,143.4,143.32,37.72]
[1750869536746,4.76092836,143.4,143.33,6.9729]
[1750869536953,6.68688358,143.39,143.32,37.72]
[1750869537157,6.68688358,143.37,143.29,12.97019565]
[1750869537454,40.2227,143.36,143.29,12.97019565]
[1750869537654,6.9735,143.33,143.28,42.657]
[1750869537848,6.9735,143.33,143.3,6.9744]
[1750869538043,6.68688358,143.35,143.28,42.657]
[1750869538257,6.9732,143.34,143.31,6.974]
[1750869539349,6.9725,143.35,143.32,6.9734]
[1750869539658,40.2227,143.36,143.29,6.68688358]
[1750869539847,37.74,143.36,143.34,6.9725]
[1750869540047,6.9716,143.37,143.34,6.9725]
[1750869540551,6.9716,143.37,143.31,6.68688358]
[1750869540552,37.74,143.39,143.33,6.68688358]
[1750869540747,5.17571407,143.4,143.33,6.68688358]
[1750869541057,6.9696,143.41,143.38,6.9704]
[1750869541654,44.42688358,143.42,143.33,6.68688358]
[1750869541872,44.42688358,143.42,143.32,40.0974]
[1750869541877,9.91752379,143.41,143.32,40.0974]
[1750869542155,9.91752379,143.4,143.33,6.68688358]
[1750869542350,44.42688358,143.42,143.33,6.68688358]
[1750869542553,44.42688358,143.42,143.33,19.68713985]
[1750869542753,6.9705,143.39,143.36,6.9715]
[1750869543851,5.17450083,143.41,143.32,53.09765627]
[1750869544051,44.42688358,143.42,143.32,40.0974]
[1750869544052,16.6023793,143.4,143.32,40.0974]
[1750869544246,9.91500288,143.39,143.32,37.74]
[1750869544452,54.07880626,143.38,143.29,44.16688358]
[1750869544658,44.16688358,143.38,143.29,44.16688358]
[1750869545449,6.9721,143.36,143.33,6.973]
[1750869545854,6.9715,143.37,143.29,44.16688358]
[1750869546054,6.9715,143.37,143.31,6.68688358]
[1750869546857,37.48,143.38,143.33,6.68688358]
[1750869547261,44.4511,143.38,143.35,6.972]
[1750869547561,6.9711,143.38,143.33,44.16688358]
[1750869547759,6.9706,143.39,143.33,44.16688358]
[1750869548057,37.48,143.41,143.33,44.16688358]
[1750869548467,2.3925,143.43,143.35,6.68688358]
[1750869548657,7.14949045,143.43,143.35,6.68688358]
[1750869548857,6.9701,143.4,143.34,13.68868358]
[1750869549060,9.94403315,143.42,143.34,13.68868358]
[1750869549259,4.75626598,143.42,143.34,13.68868358]
[1750869549558,5.18748072,143.41,143.37,6.9711]
[1750869549759,4.75628368,143.42,143.37,6.9711]
[1750869549962,6.9702,143.4,143.37,6.9711]
[1750869550654,6.9696,143.41,143.38,6.9707]
[1750869550860,6.68688358,143.42,143.38,6.9707]
[1750869551162,6.68688358,143.42,143.34,13.68868358]
[1750869551363,6.9703,143.39,143.37,6.9712]
[1750869553257,6.9703,143.39,143.34,11.29618358]
[1750869553562,6.9708,143.38,143.34,4.6093]
[1750869554456,6.9708,143.38,143.35,6.9722]
[1750869554858,2.3925,143.43,143.33,37.48]
[1750869554859,6.9719,143.36,143.33,37.48]
[1750869555062,9.95719752,143.39,143.33,37.48]
[1750869555368,16.6440811,143.38,143.3,39.8285]
[1750869555563,9.95719752,143.37,143.32,6.9733]
[1750869555763,6.68688358,143.38,143.32,6.9733]
[1750869555976,6.9725,143.35,143.32,6.9733]
[1750869556564,6.972,143.36,143.33,6.9732]
[1750869557259,2.339,143.39,143.32,6.68688358]
[1750869557464,37.48,143.4,143.32,6.68688358]
[1750869557667,5.19446233,143.39,143.32,6.68688358]
[1750869557969,6.9711,143.38,143.32,6.68688358]
[1750869558160,37.48,143.4,143.32,6.68688358]
[1750869558364,37.48,143.4,143.33,2.2469]
[1750869558970,37.48,143.4,143.34,44.16688358]
[1750869559270,44.4501,143.4,143.38,6.9707]
[1750869560169,6.9703,143.39,143.34,37.48]
[1750869560370,37.48,143.4,143.34,37.48]
[1750869560564,37.48,143.4,143.31,57.17736546]
[1750869560766,6.9711,143.38,143.35,6.9718]
[1750869561857,6.9711,143.38,143.36,6.9717]
[1750869562065,6.9705,143.39,143.36,6.9717]
[1750869562265,6.9705,143.39,143.31,44.16688358]
[1750869562666,6.9705,143.39,143.36,6.9715]
[1750869562868,6.9705,143.39,143.33,6.68688358]
[1750869563672,4.76586894,143.41,143.35,6.68688358]
[1750869563870,37.48,143.43,143.37,6.68688358]
[1750869564067,37.48,143.43,143.36,37.48]
[1750869564271,12.41360272,143.42,143.36,37.48]
[1750869564470,7.63910413,143.41,143.36,37.48]
[1750869564774,6.9703,143.39,143.34,2.3322]
[1750869565360,6.9701,143.4,143.37,6.9712]
[1750869568575,6.9701,143.4,143.38,6.9708]
[1750869568775,5.19052725,143.41,143.35,6.67973128]
[1750869568975,4.77767897,143.42,143.35,6.67973128]
[1750869569178,39.9576,143.43,143.4,6.9695]
[1750869569371,39.9576,143.43,143.35,22.01461697]
[1750869569578,39.9576,143.43,143.4,6.9694]
[1750869569973,46.9262,143.43,143.4,6.9694]
[1750869570367,46.9262,143.43,143.41,6.9694]
[1750869570994,44.4486,143.43,143.41,6.9694]
[1750869572389,6.9677,143.45,143.37,44.15973128]
[1750869572691,5.19191756,143.44,143.37,57.17585068]
[1750869572891,6.9688,143.43,143.4,6.9695]
[1750869574287,6.9689,143.42,143.4,6.9695]
[1750869575189,6.9694,143.41,143.39,6.9701]
[1750869576000,6.969,143.42,143.4,6.9698]
[1750869577801,9.12897584,143.44,143.37,37.48]
[1750869577995,6.67786499,143.42,143.34,39.7722]
[1750869578195,44.11786499,143.42,143.36,6.9716]
[1750869578598,46.45056499,143.42,143.36,6.9716]
[1750869578797,6.9712,143.38,143.35,6.972]
[1750869579194,6.67786499,143.38,143.32,2.3525]
[1750869579398,44.11786499,143.38,143.3,39.8054]
[1750869579802,6.9721,143.36,143.3,39.8054]
[1750869579990,44.11786499,143.38,143.3,39.8054]
[1750869580196,6.67786499,143.36,143.3,37.44]
[1750869580400,6.9737,143.33,143.3,6.9745]
[1750869580798,6.974,143.32,143.29,6.9749]
[1750869581892,6.9747,143.3,143.28,6.9756]
[1750869582098,6.67786499,143.32,143.24,2.2612]
[1750869582497,6.9755,143.29,143.26,6.9765]
[1750869583006,6.9755,143.29,143.24,2.2612]
[1750869583705,2.4381,143.33,143.24,2.2612]
[1750869583907,2.4381,143.33,143.24,8.93906499]
[1750869584406,37.46,143.34,143.26,6.67786499]
[1750869584705,654.7517,143.37,143.27,37.46]
[1750869584706,698.88956499,143.37,143.27,37.46]
[1750869584900,46.44956499,143.37,143.28,2.4279]
[1750869585102,54.08739224,143.37,143.28,2.4279]
[1750869585302,51.63954994,143.37,143.28,2.4279]
[1750869586202,6.9731,143.34,143.31,6.9739]
[1750869586605,46.44956499,143.37,143.28,2.4279]
[1750869586905,6.9736,143.33,143.3,6.9744]
[1750869587100,6.9736,143.33,143.28,2.4279]
[1750869587300,6.973,143.34,143.31,6.9742]
[1750869587501,42.1252,143.37,143.28,2.4279]
[1750869587692,48.80306499,143.37,143.28,2.4279]
[1750869587897,53.93026739,143.37,143.28,2.4279]
[1750869588192,48.80306499,143.37,143.28,2.4279]
[1750869588396,6.9725,143.35,143.28,2.4279]
[1750869588797,48.80306499,143.37,143.28,2.4279]
[1750869589200,6.9728,143.34,143.31,6.974]
[1750869590308,6.9733,143.33,143.3,6.9745]
[1750869590910,6.9733,143.33,143.28,2.4279]
[1750869591904,6.9733,143.33,143.31,6.9741]
[1750869592611,6.67786499,143.35,143.27,37.46]
[1750869593198,6.67786499,143.33,143.25,37.46]
[1750869593411,6.67786499,143.31,143.25,37.46]
[1750869593607,44.13786499,143.33,143.25,37.46]
[1750869593799,6.9739,143.32,143.25,37.46]
[1750869594304,44.13786499,143.33,143.25,37.46]
[1750869594702,2.3201,143.32,143.25,37.46]
[1750869595307,2.3201,143.32,143.27,6.9759]
[1750869595308,6.9751,143.3,143.27,6.9759]
[1750869596915,6.9751,143.3,143.28,6.9757]
[1750869598410,6.9744,143.31,143.25,37.46]
[1750869598615,2.3201,143.32,143.25,37.46]
[1750869599010,6.9743,143.31,143.28,6.9754]
[1750869599510,6.9743,143.31,143.25,37.46]
[1750869599711,6.9743,143.31,143.29,6.9749]
[1750869600218,9.2941,143.32,143.29,6.9749]
[1750869600416,9.2941,143.32,143.3,6.9745]
[1750869600417,6.974,143.32,143.3,6.9745]
[1750869600614,37.46,143.33,143.25,37.46]
[1750869600813,6.9745,143.31,143.25,37.46]
[1750869601319,6.974,143.32,143.29,6.9749]
[1750869602521,6.9743,143.31,143.28,6.9754]
[1750869602716,37.46,143.33,143.28,6.9754]
[1750869602920,6.67786499,143.31,143.25,37.46]
[1750869603319,6.67786499,143.31,143.27,6.9759]
[1750869604020,6.9749,143.3,143.27,6.9759]
[1750869604215,6.67786499,143.31,143.27,6.9759]
[1750869604617,6.9751,143.3,143.27,6.9759]
[1750869605124,6.9753,143.29,143.27,6.9759]
[1750869606124,6.9757,143.28,143.26,6.9764]
[1750869606317,4.46176917,143.3,143.25,37.46]
[1750869606523,6.9756,143.29,143.26,6.9762]
[1750869607020,37.46,143.33,143.25,37.46]
[1750869607226,4.46176917,143.3,143.27,6.9759]
[1750869608028,4.46176917,143.32,143.28,6.9755]
[1750869608419,4.46176917,143.32,143.25,37.46]
[1750869608623,6.975,143.3,143.25,37.46]
[1750869609424,6.9757,143.29,143.25,37.46]
[1750869609615,4.46176917,143.3,143.25,37.46]
[1750869611027,6.9756,143.29,143.26,6.9764]
[1750869611822,6.9749,143.3,143.25,37.46]
[1750869612526,6.9753,143.29,143.27,6.9759]
[1750869613223,6.9749,143.3,143.27,6.9759]
[1750869613425,4.46176917,143.31,143.27,6.9759]
[1750869613622,4.46176917,143.31,143.26,6.9765]
[1750869613826,6.9761,143.28,143.24,2.2612]
[1750869614020,4.46176917,143.27,143.21,39.7087]
[1750869614215,37.42,143.29,143.26,6.9763]
[1750869614420,37.42,143.29,143.22,4.46176917]
[1750869615117,6.9758,143.28,143.22,4.46176917]
[1750869615320,37.42,143.29,143.22,4.46176917]